fUSD/lending_fUSD_20250708
["ID","MTS","AMOUNT","RATE_DAILY","PERIOD"]
[370287694,1751937053662,-500.0,0.00030473,5]
[370287695,1751937053672,-500.0,0.00030473,5]
[370287696,1751937053682,-500.0,0.00030473,5]
[370287697,1751937053692,-500.0,0.00030571,7]
[370287698,1751937053701,-152.74574404,0.00030654,2]
[370287699,1751937053711,-500.0,0.00030681,7]
[370287700,1751937053720,-500.0,0.00030681,7]
[370287701,1751937053729,-500.0,0.00030683,7]
[370287702,1751937053738,-500.0,0.00030683,7]
[370287703,1751937053748,-500.0,0.00030683,7]
[370287704,1751937053758,-500.0,0.00030683,7]
[370287705,1751937053767,-500.0,0.00030683,7]
[370287706,1751937053777,-2459.85,0.00030683,7]
[370287707,1751937053786,-500.0,0.00030683,7]
[370287708,1751937053796,-740.56,0.00030683,7]
[370287709,1751937053805,-396.96,0.00030684,7]
[370287710,1751937053815,-263.21,0.00030684,7]
[370287711,1751937053824,-460.0,0.00030684,7]
[370287712,1751937053834,-189.694103,0.00030684,7]
[370287713,1751937053845,-162.142003,0.00030684,7]
[370287714,1751937053854,-460.0,0.00030684,7]
[370287715,1751937053864,-460.0,0.00030684,7]
[370287716,1751937053873,-460.0,0.00030684,7]
[370287717,1751937053883,-460.0,0.00030684,7]
[370287718,1751937053892,-378.22191841,0.00030684,7]
[370287719,1751937053901,-258.11,0.00030684,7]
[370287720,1751937053911,-247.84,0.00030684,7]
[370287721,1751937053921,-596.58,0.00030684,7]
[370287722,1751937053930,-338.53,0.00030684,7]
[370287723,1751937053939,-460.0,0.00030684,7]
[370287724,1751937053948,-319.34,0.00030684,7]
[370287725,1751937053960,-460.0,0.00030684,7]
[370287726,1751937053969,-460.0,0.00030684,7]
[370287727,1751937053979,-460.0,0.00030684,7]
[370287728,1751937053989,-460.0,0.00030684,7]
[370287729,1751937053998,-338.19,0.00030684,7]
[370287730,1751937054008,-460.0,0.00030684,7]
[370287731,1751937054018,-460.0,0.00030684,7]
[370287732,1751937054027,-294.97125064,0.00030684,7]
[370287733,1751937054036,-520.0,0.00030684,7]
[370287734,1751937054046,-460.0,0.00030684,7]
[370287735,1751937054055,-460.0,0.00030684,7]
[370287736,1751937054064,-460.0,0.00030684,7]
[370287737,1751937054073,-619.79,0.00030684,7]
[370287738,1751937054083,-460.0,0.00030684,7]
[370287739,1751937054093,-460.0,0.00030684,7]
[370287740,1751937054103,-415.68256408,0.00030684,7]
[370287741,1751937054113,-460.0,0.00030684,7]
[370287742,1751937054123,-387.60472024,0.00030684,7]
[370287743,1751937054133,-460.0,0.00030684,7]
[370287744,1751937054144,-536.96,0.00030684,7]
[370287745,1751937054153,-460.0,0.00030684,7]
[370287746,1751937054163,-460.0,0.00030684,7]
[370287747,1751937054173,-495.97,0.00030684,7]
[370287748,1751937054182,-460.0,0.00030684,7]
[370287749,1751937054192,-460.0,0.00030684,7]
[370287750,1751937054201,-460.0,0.00030684,7]
[370287751,1751937054211,-460.0,0.00030684,7]
[370287752,1751937054220,-871.96,0.00030684,7]
[370287753,1751937054230,-177.3,0.00030684,7]
[370287754,1751937054241,-360.18,0.00030684,7]
[370287755,1751937054251,-460.0,0.00030684,7]
[370287756,1751937054260,-460.0,0.00030684,7]
[370287757,1751937054270,-460.0,0.00030684,7]
[370287758,1751937054280,-460.0,0.00030684,7]
[370287759,1751937054290,-460.0,0.00030684,7]
[370287760,1751937054301,-460.0,0.00030684,7]
[370287761,1751937054312,-460.0,0.00030684,7]
[370287762,1751937054322,-295.22,0.00030684,7]
[370287763,1751937054333,-622.31,0.00030684,7]
[370287764,1751937054343,-460.0,0.00030684,7]
[370287765,1751937054353,-597.54,0.00030684,7]
[370287766,1751937054364,-460.0,0.00030684,7]
[370287767,1751937054374,-460.0,0.00030684,7]
[370287768,1751937054384,-460.0,0.00030684,7]
[370287769,1751937054394,-460.0,0.00030684,7]
[370287770,1751937054405,-460.0,0.00030684,7]
[370287771,1751937054418,-460.0,0.00030684,7]
[370287772,1751937054429,-387.88,0.00030684,7]
[370287773,1751937054440,-460.0,0.00030684,7]
[370287774,1751937054454,-556.86,0.00030684,7]
[370287775,1751937054466,-460.0,0.00030684,7]
[370287776,1751937054475,-460.0,0.00030684,7]
[370287777,1751937054487,-460.0,0.00030684,7]
[370287778,1751937054498,-460.0,0.00030684,7]
[370287779,1751937054509,-388.55,0.00030684,7]
[370287780,1751937054521,-545.71,0.00030684,7]
[370287781,1751937054531,-499.01438657,0.00030684,7]
[370287782,1751937054540,-460.0,0.00030684,7]
[370287783,1751937054549,-460.0,0.00030684,7]
[370287784,1751937054559,-460.0,0.00030684,7]
[370287785,1751937054569,-538.93,0.00030684,7]
[370287786,1751937054579,-460.0,0.00030684,7]
[370287787,1751937054590,-460.0,0.00030684,7]
[370287788,1751937054599,-496.18,0.00030684,7]
[370287789,1751937054609,-460.0,0.00030684,7]
[370287790,1751937054619,-460.0,0.00030684,7]
[370287791,1751937054628,-460.0,0.00030684,7]
[370287792,1751937054638,-460.0,0.00030684,7]
[370287793,1751937054647,-460.0,0.00030684,7]
[370287794,1751937054657,-460.0,0.00030684,7]
[370287795,1751937054667,-460.0,0.00030684,7]
[370287796,1751937054676,-460.0,0.00030684,7]
[370287797,1751937054686,-661.07,0.00030684,7]
[370287798,1751937054696,-561.47,0.00030684,7]
[370287799,1751937054706,-161.9,0.00030684,7]
[370287800,1751937054715,-460.0,0.00030684,7]
[370287801,1751937054725,-460.0,0.00030684,7]
[370287802,1751937054736,-460.0,0.00030684,7]
[370287803,1751937054746,-460.0,0.00030684,7]
[370287804,1751937054757,-460.0,0.00030684,7]
[370287805,1751937054768,-536.37,0.00030684,7]
[370287806,1751937054778,-460.0,0.00030684,7]
[370287807,1751937054787,-460.0,0.00030684,7]
[370287808,1751937054797,-460.0,0.00030684,7]
[370287809,1751937054806,-460.0,0.00030684,7]
[370287810,1751937054816,-460.0,0.00030684,7]
[370287811,1751937054826,-460.0,0.00030684,7]
[370287812,1751937054835,-460.0,0.00030684,7]
[370287813,1751937054845,-673.52,0.00030684,7]
[370287814,1751937054854,-460.0,0.00030684,7]
[370287815,1751937054864,-460.0,0.00030684,7]
[370287816,1751937054875,-460.0,0.00030684,7]
[370287817,1751937054885,-245.22,0.00030684,7]
[370287818,1751937054896,-460.0,0.00030684,7]
[370287819,1751937054906,-565.51,0.00030684,7]
[370287820,1751937054916,-604.81762678,0.00030684,7]
[370287821,1751937054926,-460.0,0.00030684,7]
[370287822,1751937054936,-460.0,0.00030684,7]
[370287823,1751937054945,-460.0,0.00030684,7]
[370287824,1751937054956,-460.0,0.00030684,7]
[370287825,1751937054965,-460.0,0.00030684,7]
[370287826,1751937054975,-460.0,0.00030684,7]
[370287827,1751937054985,-460.0,0.00030684,7]
[370287828,1751937054994,-585.37799825,0.00030684,7]
[370287829,1751937055005,-460.0,0.00030684,7]
[370287830,1751937055014,-460.0,0.00030684,7]
[370287831,1751937055024,-460.0,0.00030684,7]
[370287832,1751937055033,-460.0,0.00030684,7]
[370287833,1751937055045,-460.0,0.00030684,7]
[370287834,1751937055055,-460.0,0.00030684,7]
[370287835,1751937055065,-460.0,0.00030684,7]
[370287836,1751937055206,-460.0,0.00030684,7]
[370287837,1751937055216,-460.0,0.00030684,7]
[370287838,1751937055225,-460.0,0.00030684,7]
[370287839,1751937055235,-460.0,0.00030684,7]
[370287840,1751937055244,-460.0,0.00030684,7]
[370287841,1751937055254,-527.45481101,0.00030684,7]
[370287842,1751937055263,-947.95,0.00030684,7]
[370287843,1751937055272,-460.0,0.00030684,7]
[370287844,1751937055283,-460.0,0.00030684,7]
[370287845,1751937055292,-460.0,0.00030684,7]
[370287846,1751937055302,-460.0,0.00030684,7]
[370287847,1751937055311,-460.0,0.00030684,7]
[370287848,1751937055320,-460.0,0.00030684,7]
[370287849,1751937055330,-460.0,0.00030684,7]
[370287850,1751937055339,-460.0,0.00030684,7]
[370287851,1751937055348,-460.0,0.00030684,7]
[370287852,1751937055357,-460.0,0.00030684,7]
[370287853,1751937055367,-460.0,0.00030684,7]
[370287854,1751937055376,-1507.82,0.00030684,7]
[370287855,1751937055386,-222.72410844,0.00030684,7]
[370287856,1751937055395,-460.0,0.00030684,7]
[370287857,1751937055405,-490.0,0.00030684,7]
[370287858,1751937055416,-556.07,0.00030684,7]
[370287859,1751937055428,-593.83,0.00030684,7]
[370287860,1751937055438,-460.0,0.00030684,7]
[370287861,1751937055448,-460.0,0.00030684,7]
[370287862,1751937055458,-460.0,0.00030684,7]
[370287863,1751937055467,-309.05408302,0.00030684,7]
[370287864,1751937055476,-460.0,0.00030684,7]
[370287865,1751937055485,-460.0,0.00030684,7]
[370287866,1751937055496,-460.0,0.00030684,7]
[370287867,1751937055507,-522.2,0.00030684,7]
[370287868,1751937055516,-582.95,0.00030684,7]
[370287869,1751937055525,-460.0,0.00030684,7]
[370287870,1751937055535,-460.0,0.00030684,7]
[370287871,1751937055545,-647.74,0.00030684,7]
[370287872,1751937055556,-460.0,0.00030684,7]
[370287873,1751937055566,-497.23,0.00030684,7]
[370287874,1751937055577,-510.92,0.00030684,7]
[370287875,1751937055586,-547.47,0.00030684,7]
[370287876,1751937055595,-508.02,0.00030684,7]
[370287877,1751937055605,-259.25,0.00030684,7]
[370287878,1751937055615,-460.0,0.00030684,7]
[370287879,1751937055625,-460.0,0.00030684,7]
[370287880,1751937055635,-460.0,0.00030684,7]
[370287881,1751937055645,-460.0,0.00030684,7]
[370287882,1751937055654,-460.0,0.00030684,7]
[370287883,1751937055664,-460.0,0.00030684,7]
[370287884,1751937055673,-663.74,0.00030684,7]
[370287885,1751937055683,-460.0,0.00030684,7]
[370287886,1751937055695,-621.12,0.00030684,7]
[370287887,1751937055705,-775.04,0.00030684,7]
[370287888,1751937055715,-460.0,0.00030684,7]
[370287889,1751937055725,-460.0,0.00030684,7]
[370287890,1751937055735,-460.0,0.00030684,7]
[370287891,1751937055746,-460.0,0.00030684,7]
[370287892,1751937055755,-524.52,0.00030684,7]
[370287893,1751937055765,-460.0,0.00030684,7]
[370287894,1751937055775,-460.0,0.00030684,7]
[370287895,1751937055785,-490.82,0.00030684,7]
[370287896,1751937055795,-564.32,0.00030684,7]
[370287897,1751937055805,-460.0,0.00030684,7]
[370287898,1751937055815,-460.0,0.00030684,7]
[370287899,1751937055826,-580.37,0.00030684,7]
[370287900,1751937055837,-460.0,0.00030684,7]
[370287901,1751937055847,-520.0,0.00030684,7]
[370287902,1751937055857,-495.61,0.00030684,7]
[370287903,1751937055867,-460.0,0.00030684,7]
[370287904,1751937055877,-460.0,0.00030684,7]
[370287905,1751937055886,-482.67,0.00030684,7]
[370287906,1751937055897,-528.59,0.00030684,7]
[370287907,1751937055908,-460.0,0.00030684,7]
[370287908,1751937055920,-460.0,0.00030684,7]
[370287909,1751937055930,-468.15,0.00030684,7]
[370287910,1751937055939,-460.0,0.00030684,7]
[370287911,1751937055948,-460.0,0.00030684,7]
[370287912,1751937055958,-460.0,0.00030684,7]
[370287913,1751937055967,-460.0,0.00030684,7]
[370287914,1751937055976,-460.0,0.00030684,7]
[370287915,1751937055986,-460.0,0.00030684,7]
[370287916,1751937055995,-621.12,0.00030684,7]
[370287917,1751937056005,-1005.7,0.00030684,7]
[370287918,1751937056014,-460.0,0.00030684,7]
[370287919,1751937056024,-460.0,0.00030684,7]
[370287920,1751937056033,-460.0,0.00030684,7]
[370287921,1751937056042,-507.18,0.00030684,7]
[370287922,1751937056051,-460.0,0.00030684,7]
[370287923,1751937056061,-460.0,0.00030684,7]
[370287924,1751937056070,-686.48,0.00030684,7]
[370287925,1751937056080,-460.0,0.00030684,7]
[370287926,1751937056089,-460.0,0.00030684,7]
[370287927,1751937056098,-1022.4,0.00030684,7]
[370287928,1751937056108,-460.0,0.00030684,7]
[370287929,1751937056118,-659.06,0.00030684,7]
[370287930,1751937056128,-460.0,0.00030684,7]
[370287931,1751937056138,-669.19,0.00030684,7]
[370287932,1751937056147,-460.0,0.00030684,7]
[370287933,1751937056157,-801.83,0.00030684,7]
[370287934,1751937056166,-460.0,0.00030684,7]
[370287935,1751937056176,-487.73,0.00030684,7]
[370287936,1751937056185,-578.76,0.00030684,7]
[370287937,1751937056195,-460.0,0.00030684,7]
[370287938,1751937056204,-531.48,0.00030684,7]
[370287939,1751937056215,-460.0,0.00030684,7]
[370287940,1751937056227,-1283.19,0.00030684,7]
[370287941,1751937056237,-460.0,0.00030684,7]
[370287942,1751937056248,-497.35,0.00030684,7]
[370287943,1751937056258,-632.05,0.00030684,7]
[370287944,1751937056267,-484.59,0.00030684,7]
[370287945,1751937056278,-460.0,0.00030684,7]
[370287946,1751937056287,-460.0,0.00030684,7]
[370287947,1751937056297,-460.0,0.00030684,7]
[370287948,1751937056307,-2393.98,0.00030684,7]
[370287949,1751937056316,-460.0,0.00030684,7]
[370287950,1751937056326,-1126.56,0.00030684,7]
[370287951,1751937056336,-460.0,0.00030684,7]
[370287952,1751937056346,-1394.09,0.00030684,7]
[370287953,1751937056355,-460.0,0.00030684,7]
[370287954,1751937056366,-228.01,0.00030684,7]
[370287955,1751937056376,-1135.43,0.00030684,7]
[370287956,1751937056386,-547.41636229,0.00030684,7]
[370287957,1751937056398,-460.0,0.00030684,7]
[370287958,1751937056408,-460.0,0.00030684,7]
[370287959,1751937056422,-530.83,0.00030684,7]
[370287960,1751937056432,-2562.25,0.00030684,7]
[370287961,1751937056442,-527.88,0.00030684,7]
[370287962,1751937056453,-674.96,0.00030684,7]
[370287963,1751937056468,-460.0,0.00030684,7]
[370287964,1751937056479,-460.0,0.00030684,7]
[370287965,1751937056489,-460.0,0.00030684,7]
[370287966,1751937056499,-725.59,0.00030684,7]
[370287967,1751937056510,-503.86,0.00030684,7]
[370287968,1751937056521,-1360.3,0.00030684,7]
[370287969,1751937056531,-460.0,0.00030684,7]
[370287970,1751937056542,-460.0,0.00030684,7]
[370287971,1751937056552,-460.0,0.00030684,7]
[370287972,1751937056561,-460.0,0.00030684,7]
[370287973,1751937056571,-460.0,0.00030684,7]
[370287974,1751937056582,-548.93874151,0.00030684,7]
[370287975,1751937056592,-460.0,0.00030684,7]
[370287976,1751937056603,-460.0,0.00030684,7]
[370287977,1751937056613,-460.0,0.00030684,7]
[370287978,1751937056623,-460.0,0.00030684,7]
[370287979,1751937056635,-460.0,0.00030684,7]
[370287980,1751937056645,-460.0,0.00030684,7]
[370287981,1751937056655,-536.8,0.00030684,7]
[370287982,1751937056666,-460.0,0.00030684,7]
[370287983,1751937056676,-460.0,0.00030684,7]
[370287984,1751937056686,-472.62,0.00030684,7]
[370287985,1751937056696,-550.05,0.00030684,7]
[370287986,1751937056706,-460.0,0.00030684,7]
[370287987,1751937056715,-460.0,0.00030684,7]
[370287988,1751937056724,-460.0,0.00030684,7]
[370287989,1751937056733,-460.0,0.00030684,7]
[370287990,1751937056742,-460.0,0.00030684,7]
[370287991,1751937056752,-460.0,0.00030684,7]
[370287992,1751937056761,-460.0,0.00030684,7]
[370287993,1751937056770,-583.04,0.00030684,7]
[370287994,1751937056780,-756.09,0.00030684,7]
[370287995,1751937056789,-460.0,0.00030684,7]
[370287996,1751937056799,-460.0,0.00030684,7]
[370287997,1751937056808,-460.0,0.00030684,7]
[370287998,1751937056817,-357.99,0.00030684,7]
[370287999,1751937056827,-460.0,0.00030684,7]
[370288000,1751937056836,-812.32,0.00030684,7]
[370288001,1751937056846,-460.0,0.00030684,7]
[370288002,1751937056855,-1468.52,0.00030684,7]
[370288003,1751937056865,-599.84,0.00030684,7]
[370288004,1751937056874,-460.0,0.00030684,7]
[370288005,1751937056884,-460.0,0.00030684,7]
[370288006,1751937056893,-460.0,0.00030684,7]
[370288007,1751937056903,-1277.77,0.00030684,7]
[370288008,1751937056912,-1478.5,0.00030684,7]
[370288009,1751937056921,-460.0,0.00030684,7]
[370288010,1751937056930,-460.0,0.00030684,7]
[370288011,1751937056939,-460.0,0.00030684,7]
[370288012,1751937056949,-460.0,0.00030684,7]
[370288013,1751937056958,-460.0,0.00030684,7]
[370288014,1751937056967,-687.25,0.00030684,7]
[370288015,1751937056977,-256.06,0.00030684,7]
[370288016,1751937056986,-696.77,0.00030684,7]
[370288017,1751937056996,-460.0,0.00030684,7]
[370288018,1751937057005,-460.0,0.00030684,7]
[370288019,1751937057014,-460.0,0.00030684,7]
[370288020,1751937057024,-460.0,0.00030684,7]
[370288021,1751937057033,-460.0,0.00030684,7]
[370288022,1751937057042,-9693.63,0.00030684,7]
[370288023,1751937057052,-460.0,0.00030684,7]
[370288024,1751937057061,-460.0,0.00030684,7]
[370288025,1751937057070,-2181.97,0.00030684,7]
[370288026,1751937057080,-460.17,0.00030684,7]
[370288027,1751937057089,-926.03,0.00030684,7]
[370288028,1751937057098,-460.0,0.00030684,7]
[370288029,1751937057107,-460.0,0.00030684,7]
[370288030,1751937057117,-991.75,0.00030684,7]
[370288031,1751937057126,-460.0,0.00030684,7]
[370288032,1751937057135,-585.71,0.00030684,7]
[370288033,1751937057144,-460.0,0.00030684,7]
[370288034,1751937057153,-460.0,0.00030684,7]
[370288035,1751937057163,-460.0,0.00030684,7]
[370288036,1751937057173,-300.0,0.00030684,2]
[370288037,1751937057182,-460.0,0.00030684,7]
[370288038,1751937057192,-739.63,0.00030684,7]
[370288039,1751937057201,-644.33,0.00030684,7]
[370288040,1751937057211,-850.89,0.00030684,7]
[370288041,1751937057340,-420.06194786,0.00030684,7]
[370288042,1751937057351,-460.0,0.00030684,7]
[370288043,1751937057364,-460.0,0.00030684,7]
[370288044,1751937057374,-564.52,0.00030684,7]
[370288045,1751937057384,-460.0,0.00030684,7]
[370288046,1751937057393,-539.5,0.00030684,7]
[370288047,1751937057403,-460.0,0.00030684,7]
[370288048,1751937057412,-460.0,0.00030684,7]
[370288049,1751937057425,-460.0,0.00030684,7]
[370288050,1751937057434,-511.2,0.00030684,7]
[370288051,1751937057443,-1418.58,0.00030684,7]
[370288052,1751937057453,-460.0,0.00030684,7]
[370288053,1751937057464,-440.77,0.00030684,7]
[370288054,1751937057473,-460.0,0.00030684,7]
[370288055,1751937057482,-681.54,0.00030684,7]
[370288056,1751937057492,-379.74,0.00030684,7]
[370288057,1751937057502,-687.76,0.00030684,7]
[370288058,1751937057512,-460.0,0.00030684,7]
[370288059,1751937057522,-460.0,0.00030684,7]
[370288060,1751937057531,-460.0,0.00030684,7]
[370288061,1751937057540,-511.97,0.00030684,7]
[370288062,1751937057550,-615.76,0.00030684,7]
[370288063,1751937057559,-460.0,0.00030684,7]
[370288064,1751937057569,-325.15,0.00030684,7]
[370288065,1751937057578,-473.71,0.00030684,7]
[370288066,1751937057588,-460.0,0.00030684,7]
[370288067,1751937057598,-460.0,0.00030684,7]
[370288068,1751937057608,-460.0,0.00030684,7]
[370288069,1751937057618,-1195.65,0.00030684,7]
[370288070,1751937057628,-709.33,0.00030684,7]
[370288071,1751937057637,-460.0,0.00030684,7]
[370288072,1751937057647,-460.0,0.00030684,7]
[370288073,1751937057656,-550.36,0.00030684,7]
[370288074,1751937057666,-570.13873517,0.00030684,7]
[370288075,1751937057675,-460.0,0.00030684,7]
[370288076,1751937057683,-577.54,0.00030684,7]
[370288077,1751937057692,-460.0,0.00030684,7]
[370288078,1751937057702,-460.0,0.00030684,7]
[370288079,1751937057711,-1669.86,0.00030684,7]
[370288080,1751937057720,-460.0,0.00030684,7]
[370288081,1751937057730,-460.0,0.00030684,7]
[370288082,1751937057741,-484.13,0.00030684,7]
[370288083,1751937057751,-460.0,0.00030684,7]
[370288084,1751937057761,-460.0,0.00030684,7]
[370288085,1751937057770,-888.97,0.00030684,7]
[370288086,1751937057780,-460.0,0.00030684,7]
[370288087,1751937057790,-523.29,0.00030684,7]
[370288088,1751937057800,-460.0,0.00030684,7]
[370288089,1751937057810,-753.67,0.00030684,7]
[370288090,1751937057821,-460.0,0.00030684,7]
[370288091,1751937057830,-783.83,0.00030684,7]
[370288092,1751937057840,-594.53,0.00030684,7]
[370288093,1751937057850,-460.0,0.00030684,7]
[370288094,1751937057859,-460.0,0.00030684,7]
[370288095,1751937057869,-628.54,0.00030684,7]
[370288096,1751937057878,-460.0,0.00030684,7]
[370288097,1751937057891,-460.0,0.00030684,7]
[370288098,1751937057901,-568.94,0.00030684,7]
[370288099,1751937057910,-828.38,0.00030684,7]
[370288100,1751937057920,-460.0,0.00030684,7]
[370288101,1751937057930,-460.0,0.00030684,7]
[370288102,1751937057940,-460.0,0.00030684,7]
[370288103,1751937057949,-460.0,0.00030684,7]
[370288104,1751937057959,-460.0,0.00030684,7]
[370288105,1751937057969,-460.0,0.00030684,7]
[370288106,1751937057978,-460.0,0.00030684,7]
[370288107,1751937057988,-460.0,0.00030684,7]
[370288108,1751937057998,-460.0,0.00030684,7]
[370288109,1751937058008,-460.0,0.00030684,7]
[370288110,1751937058017,-460.0,0.00030684,7]
[370288111,1751937058028,-460.0,0.00030684,7]
[370288112,1751937058037,-6022.11,0.00030684,7]
[370288113,1751937058048,-852.78,0.00030684,7]
[370288114,1751937058059,-197.25931685,0.00030684,2]
[370288115,1751937058069,-2500.07206869,0.00030811,2]
[370288116,1751937058078,-1722.001,0.00030844,27]
[370288117,1751937058088,-152.74574404,0.00030893,2]
[370288118,1751937058099,-836.92587831,0.00030935,2]
[370288119,1751937058109,-500.0,0.00030954,7]
[370288120,1751937058118,-460.0,0.00030956,7]
[370288121,1751937058129,-490.0,0.00030956,7]
[370288122,1751937058138,-490.0,0.00030956,7]
[370288123,1751937058147,-490.0,0.00030956,7]
[370288124,1751937058157,-490.0,0.00030956,7]
[370288125,1751937058166,-490.0,0.00030956,7]
[370288126,1751937058175,-460.0,0.00030956,7]
[370288127,1751937058184,-490.0,0.00030956,7]
[370288128,1751937058194,-460.0,0.00030956,7]
[370288129,1751937058203,-304.89566667,0.00030956,7]
[370288130,1751937058213,-490.0,0.00030956,7]
[370288131,1751937058225,-460.0,0.00030956,7]
[370288132,1751937058235,-490.0,0.00030956,7]
[370288133,1751937058246,-490.0,0.00030956,7]
[370288134,1751937058256,-490.0,0.00030956,7]
[370288135,1751937058266,-500.0,0.00030957,7]
[370288136,1751937058276,-500.0,0.00030957,7]
[370288137,1751937058286,-500.0,0.00030957,7]
[370288138,1751937058300,-500.0,0.00030957,7]
[370288139,1751937058314,-2459.85,0.00030957,7]
[370288140,1751937058325,-500.0,0.00030957,7]
[370288141,1751937058335,-740.56,0.00030957,7]
[370288142,1751937058345,-460.0,0.00030958,7]
[370288143,1751937058357,-460.0,0.00030958,7]
[370288144,1751937058367,-460.0,0.00030958,7]
[370288145,1751937058376,-1156.15299014,0.00030958,2]
[370288146,1751937058386,-200.0,0.00030958,2]
[370288147,1751937058397,-189.694103,0.00030958,7]
[370288148,1751937058407,-150.139727,0.00030958,7]
[370288149,1751937058419,-460.0,0.00030958,7]
[370288150,1751937058433,-460.0,0.00030958,7]
[370288151,1751937058443,-460.0,0.00030958,7]
[370288152,1751937058453,-460.0,0.00030958,7]
[370288153,1751937058466,-338.16,0.00030958,7]
[370288154,1751937058475,-460.0,0.00030958,7]
[370288155,1751937058485,-460.0,0.00030958,7]
[370288156,1751937058499,-443.80466273,0.00030958,7]
[370288157,1751937058509,-590.33,0.00030958,7]
[370288158,1751937058519,-197.63,0.00030958,7]
[370288159,1751937058530,-460.0,0.00030958,7]
[370288160,1751937058539,-460.0,0.00030958,7]
[370288161,1751937058549,-226.36,0.00030958,7]
[370288162,1751937058558,-460.0,0.00030958,7]
[370288163,1751937058569,-619.79,0.00030958,7]
[370288164,1751937058579,-405.12,0.00030958,7]
[370288165,1751937058589,-460.0,0.00030958,7]
[370288166,1751937058598,-460.0,0.00030958,7]
[370288167,1751937058607,-460.0,0.00030958,7]
[370288168,1751937058617,-460.0,0.00030958,7]
[370288169,1751937058627,-384.05,0.00030958,7]
[370288170,1751937058637,-495.97,0.00030958,7]
[370288171,1751937058646,-460.0,0.00030958,7]
[370288172,1751937058656,-460.0,0.00030958,7]
[370288173,1751937058666,-460.0,0.00030958,7]
[370288174,1751937058676,-460.0,0.00030958,7]
[370288175,1751937058685,-871.96,0.00030958,7]
[370288176,1751937058695,-460.0,0.00030958,7]
[370288177,1751937058705,-460.0,0.00030958,7]
[370288178,1751937058715,-460.0,0.00030958,7]
[370288179,1751937058725,-483.91,0.00030958,7]
[370288180,1751937058735,-550.31,0.00030958,7]
[370288181,1751937058745,-460.0,0.00030958,7]
[370288182,1751937058755,-460.0,0.00030958,7]
[370288183,1751937058764,-622.31,0.00030958,7]
[370288184,1751937058774,-460.0,0.00030958,7]
[370288185,1751937058784,-597.54,0.00030958,7]
[370288186,1751937058794,-460.0,0.00030958,7]
[370288187,1751937058805,-460.0,0.00030958,7]
[370288188,1751937058815,-460.0,0.00030958,7]
[370288189,1751937058825,-460.0,0.00030958,7]
[370288190,1751937058835,-460.0,0.00030958,7]
[370288191,1751937058845,-460.0,0.00030958,7]
[370288192,1751937058855,-460.0,0.00030958,7]
[370288193,1751937058865,-556.86,0.00030958,7]